fUSD/lending_fUSD_20260405
["ID","MTS","AMOUNT","RATE_DAILY","PERIOD"]
[419826154,1775400651944,-329.2835348,0.00015364,2]
[419826155,1775400651955,-500.0,0.00015364,2]
[419826156,1775400651965,-500.0,0.00015364,2]
[419826157,1775400651975,-500.0,0.00015364,2]
[419826158,1775400651985,-500.0,0.00015364,2]
[419826159,1775400651995,-500.0,0.00015364,2]
[419826160,1775400652005,-170.0,0.00015364,2]
[419826161,1775400652015,-170.0,0.00015364,2]
[419826162,1775400652025,-170.0,0.00015364,2]
[419826163,1775400652035,-279.9045709,0.00015364,2]
[419826164,1775400652045,-170.0,0.00015364,2]
[419826165,1775400652055,-170.0,0.00015364,2]
[419826166,1775400652065,-170.0,0.00015364,2]
[419826167,1775400652076,-170.0,0.00015364,2]
[419826168,1775400652085,-170.0,0.00015364,2]
[419826169,1775400652102,-170.0,0.00015364,2]
[419826170,1775400652112,-170.0,0.00015364,2]
[419826171,1775400652123,-170.0,0.00015364,2]
[419826172,1775400652134,-170.0,0.00015364,2]
[419826173,1775400652144,-150.0,0.00015364,2]
[419826174,1775400652155,-150.0,0.00015366,2]
[419826175,1775400652167,-150.0,0.00015376,2]
[419826176,1775400652178,-150.0,0.00015377,2]
[419826177,1775400652190,-150.0,0.00015378,2]
[419826178,1775400652201,-150.0,0.0001538,2]
[419826179,1775400652212,-150.0,0.00015382,2]
[419826180,1775400652224,-150.0,0.00015385,2]
[419826181,1775400652234,-150.0,0.00015386,2]
[419826182,1775400652245,-5888.0,0.00015391,2]
[419826183,1775400652256,-150.0,0.00015393,2]
[419826184,1775400652267,-150.0,0.00015394,2]
[419826185,1775400652278,-150.0,0.00015398,2]
[419826186,1775400652289,-150.0,0.000154,2]
[419826187,1775400652300,-150.0,0.000154,2]
[419826188,1775400652311,-150.0,0.00015403,2]
[419826189,1775400652321,-150.0,0.00015408,2]
[419826190,1775400652332,-1000.0,0.00015409,2]
[419826191,1775400652343,-150.0,0.00015411,2]
[419826192,1775400652354,-150.0,0.00015411,2]
[419826193,1775400652365,-503.0,0.00015417,4]
[419826194,1775400652376,-9552.16786547,0.00015419,2]
[419826195,1775400652386,-500.0,0.00015419,2]
[419826196,1775400652396,-151.0,0.00015419,2]
[419826197,1775400652407,-150.0,0.0001542,2]
[419826198,1775400652417,-150.0,0.00015421,2]
[419826199,1775400652427,-150.0,0.00015427,2]
[419826200,1775400652437,-150.0,0.0001543,2]
[419826201,1775400652448,-150.0,0.00015431,2]
[419826202,1775400652458,-150.0,0.00015439,2]
[419826203,1775400652469,-150.0,0.0001544,2]
[419826204,1775400652480,-150.0,0.00015444,2]
[419826205,1775400652491,-150.0,0.00015446,2]
[419826206,1775400652502,-150.0,0.00015448,2]
[419826207,1775400652514,-150.0,0.0001545,2]
[419826208,1775400652524,-600.0,0.00015452,2]
[419826209,1775400652535,-150.0,0.00015452,2]
[419826210,1775400652545,-150.0,0.00015458,2]
[419826211,1775400652555,-150.0,0.0001546,2]
[419826212,1775400652566,-150.0,0.00015461,2]
[419826213,1775400652577,-150.0,0.00015467,2]
[419826214,1775400652592,-150.0,0.00015467,2]
[419826215,1775400652605,-150.0,0.00015467,2]
[419826216,1775400652616,-150.0,0.00015467,2]
[419826217,1775400652628,-2000.0,0.00015469,2]
[419826218,1775400652638,-2000.0,0.00015469,2]
[419826219,1775400652649,-15609.82,0.00015471,2]
[419826220,1775400652660,-2979.4,0.00015471,2]
[419826221,1775400652671,-6742.52,0.00015471,2]
[419826222,1775400652682,-28985.77,0.00015471,2]
[419826223,1775400652693,-2855.05,0.00015471,2]
[419826224,1775400652704,-150.0,0.00015474,2]
[419826225,1775400652715,-9905.5980765,0.00015474,2]
[419826226,1775400652726,-500.0,0.00015474,2]
[419826227,1775400652736,-151.0,0.00015474,2]
[419826228,1775400652747,-150.0,0.00015476,2]
[419826229,1775400652759,-150.0,0.00015478,2]
[419826230,1775400652769,-150.0,0.0001548,2]
[419826231,1775400652781,-200.0,0.0001548,2]
[419826232,1775400652794,-150.0,0.00015485,2]
[419826233,1775400652805,-515.96545288,0.00015489,2]
[419826234,1775400652816,-150.0,0.00015495,2]
[419826235,1775400652829,-150.0,0.00015495,2]
[419826236,1775400652840,-150.0,0.00015496,2]
[419826237,1775400652852,-150.0,0.000155,2]
[419826238,1775400652863,-150.0,0.000155,2]
[419826239,1775400652874,-150.0,0.00015503,2]
[419826240,1775400652885,-150.0,0.00015508,2]
[419826241,1775400652900,-150.0,0.00015512,2]
[419826242,1775400652912,-150.0,0.00015512,2]
[419826243,1775400652922,-150.0,0.00015518,2]
[419826244,1775400652935,-150.0,0.0001552,2]
[419826245,1775400652947,-150.0,0.00015523,2]
[419826246,1775400652959,-1000.0,0.00015526,2]
[419826247,1775400652970,-150.0,0.00015528,2]
[419826248,1775400652982,-10272.10520533,0.00015529,2]
[419826249,1775400652994,-500.0,0.00015529,2]
[419826250,1775400653005,-151.0,0.00015529,2]
[419826251,1775400653015,-150.0,0.00015531,2]
[419826252,1775400653026,-150.0,0.00015539,2]
[419826253,1775400653037,-150.0,0.0001554,2]
[419826254,1775400653047,-150.0,0.0001554,2]
[419826255,1775400653057,-150.0,0.00015545,2]
[419826256,1775400653069,-150.0,0.0001555,2]
[419826257,1775400653080,-150.0,0.00015551,2]
[419826258,1775400653093,-150.0,0.00015556,2]
[419826259,1775400653103,-150.0,0.00015559,2]
[419826260,1775400653115,-150.0,0.0001556,2]
[419826261,1775400653126,-600.0,0.00015561,2]
[419826262,1775400653136,-150.0,0.00015562,2]
[419826263,1775400653147,-150.0,0.00015562,2]
[419826264,1775400653158,-150.0,0.00015566,2]
[419826265,1775400653169,-150.0,0.00015569,2]
[419826266,1775400653180,-150.0,0.00015579,2]
[419826267,1775400653191,-150.0,0.00015579,2]
[419826268,1775400653202,-150.0,0.0001558,2]
[419826269,1775400653213,-150.0,0.00015584,2]
[419826270,1775400653224,-10652.17309792,0.00015584,2]
[419826271,1775400653235,-500.0,0.00015584,2]
[419826272,1775400653245,-151.0,0.00015584,2]
[419826273,1775400653256,-150.0,0.00015586,2]
[419826274,1775400653267,-150.0,0.00015593,2]
[419826275,1775400653278,-150.0,0.00015596,2]
[419826276,1775400653289,-1000.0,0.00015598,2]
[419826277,1775400653299,-150.0,0.000156,2]
[419826278,1775400653310,-150.0,0.000156,2]
[419826279,1775400653321,-150.0,0.000156,2]
[419826280,1775400653331,-150.0,0.00015605,2]
[419826281,1775400653343,-150.0,0.00015607,2]
[419826282,1775400653353,-150.0,0.00015613,2]
[419826283,1775400653364,-156.13980161,0.00015613,2]
[419826284,1775400653376,-150.0,0.00015614,2]
[419826285,1775400653387,-150.0,0.0001562,2]
[419826286,1775400653398,-150.0,0.0001562,2]
[419826287,1775400653409,-150.0,0.00015627,2]
[419826288,1775400653421,-150.0,0.00015629,2]
[419826289,1775400653433,-150.0,0.00015631,2]
[419826290,1775400653443,-150.0,0.00015635,2]
[419826291,1775400653454,-5850.7516326,0.00015639,2]
[419826292,1775400653464,-500.0,0.00015639,2]
[419826293,1775400653475,-151.0,0.00015639,2]
[419826294,1775400653485,-150.0,0.0001564,2]
[419826295,1775400653495,-150.0,0.00015641,2]
[419826296,1775400653506,-150.0,0.00015644,2]
[419826297,1775400653517,-150.0,0.00015646,2]
[419826298,1775400653528,-150.0,0.00015647,2]
[419826299,1775400653538,-150.0,0.00015649,2]
[419826300,1775400653549,-150.0,0.0001565,2]
[419826301,1775400653559,-150.0,0.0001566,2]
[419826302,1775400653570,-150.0,0.00015663,2]
[419826303,1775400653580,-150.0,0.00015663,2]
[419826304,1775400653591,-150.0,0.00015669,2]
[419826305,1775400653601,-600.0,0.0001567,2]
[419826306,1775400653611,-150.0,0.00015671,2]
[419826307,1775400653622,-150.0,0.00015675,2]
[419826308,1775400653632,-150.0,0.0001568,2]
[419826309,1775400653642,-150.0,0.0001568,2]
[419826310,1775400653652,-256.53568748,0.00015681,7]
[419826311,1775400653662,-150.0,0.00015681,7]
[419826312,1775400653673,-150.0,0.00015691,2]
[419826313,1775400653683,-1000.0,0.00015692,2]
[419826314,1775400653693,-150.0,0.00015692,2]
[419826315,1775400653703,-150.0,0.00015693,2]
[419826316,1775400653712,-500.0,0.00015694,2]
[419826317,1775400653723,-151.0,0.00015694,2]
[419826318,1775400653733,-150.0,0.00015697,2]
[419826319,1775400653743,-150.0,0.00015697,2]
[419826320,1775400653753,-279.2065,0.000157,2]
[419826321,1775400653763,-2463.48,0.000157,2]
[419826322,1775400653773,-150.0,0.000157,2]
[419826323,1775400653783,-150.0,0.000157,2]
[419826324,1775400653793,-150.0,0.00015702,2]
[419826325,1775400653804,-150.0,0.00015714,2]
[419826326,1775400653815,-150.0,0.00015715,2]
[419826327,1775400653825,-154.0,0.00015718,3]
[419826328,1775400653835,-150.0,0.00015719,2]
[419826329,1775400653845,-150.0,0.0001572,2]
[419826330,1775400653855,-72823.1506587,0.0001572,2]
[419826331,1775400653865,-150.0,0.00015724,2]
[419826332,1775400653876,-150.0,0.00015729,2]
[419826333,1775400653886,-150.0,0.00015731,2]
[419826334,1775400653896,-150.0,0.00015733,2]
[419826335,1775400653906,-150.0,0.00015733,2]
[419826336,1775400653916,-150.0,0.00015737,2]
[419826337,1775400653926,-150.0,0.0001574,2]
[419826338,1775400653937,-150.0,0.00015747,2]
[419826339,1775400653948,-150.0,0.00015747,2]
[419826340,1775400653958,-1249.03,0.00015749,2]
[419826341,1775400653969,-1122.33,0.00015749,2]
[419826342,1775400653979,-420.19790691,0.00015749,2]
[419826343,1775400654321,-769.66,0.00015749,2]
[419826344,1775400654366,-500.0,0.00015749,2]
[419826345,1775400654376,-1088.2,0.00015749,2]
[419826346,1775400654386,-673.65,0.00015749,2]
[419826347,1775400654395,-1772.17,0.00015749,2]
[419826348,1775400654405,-806.66,0.00015749,2]
[419826349,1775400654414,-1268.28,0.00015749,2]
[419826350,1775400654423,-500.0,0.00015749,2]
[419826351,1775400654434,-151.0,0.00015749,2]
[419826352,1775400654444,-150.0,0.0001575,2]
[419826353,1775400654455,-150.0,0.00015752,2]
[419826354,1775400654464,-471.0,0.00015753,2]
[419826355,1775400654474,-5957.33,0.00015753,2]
[419826356,1775400654483,-150.0,0.00015754,2]
[419826357,1775400654495,-150.0,0.00015756,2]
[419826358,1775400654504,-150.0,0.00015759,2]
[419826359,1775400654514,-150.0,0.0001576,2]
[419826360,1775400654524,-150.0,0.00015764,2]
[419826361,1775400654533,-150.0,0.00015775,2]
[419826362,1775400654542,-151.39,0.00015779,2]
[419826363,1775400654552,-151.39,0.00015779,2]
[419826364,1775400654562,-151.39,0.00015779,2]
[419826365,1775400654571,-151.39,0.00015779,2]
[419826366,1775400654580,-150.0,0.00015779,2]
[419826367,1775400654590,-150.0,0.0001578,2]
[419826368,1775400654600,-150.0,0.00015781,2]
[419826369,1775400654609,-150.0,0.00015781,2]
[419826370,1775400654620,-150.0,0.00015783,2]
[419826371,1775400654631,-150.0,0.00015798,2]
[419826372,1775400654641,-167.9673,0.000158,2]
[419826373,1775400654650,-167.9673,0.000158,2]
[419826374,1775400654660,-167.9673,0.000158,2]
[419826375,1775400654669,-150.0,0.000158,2]
[419826376,1775400654679,-150.0,0.000158,2]
[419826377,1775400654688,-1539.49801699,0.00015801,2]
[419826378,1775400654698,-150.0,0.00015803,2]
[419826379,1775400654707,-150.0,0.00015804,2]
[419826380,1775400654716,-500.0,0.00015804,2]
[419826381,1775400654725,-151.0,0.00015804,2]
[419826382,1775400654735,-150.0,0.00015807,2]
[419826383,1775400654744,-150.0,0.0001581,2]
[419826384,1775400654754,-150.0,0.00015815,2]
[419826385,1775400654763,-150.0,0.00015815,2]
[419826386,1775400654773,-16286.1009374,0.00015817,2]
[419826387,1775400654782,-588.99,0.00015817,2]
[419826388,1775400654791,-588.99,0.00015817,2]
[419826389,1775400654801,-588.99,0.00015817,2]
[419826390,1775400654810,-588.99,0.00015817,2]
[419826391,1775400654820,-588.99,0.00015817,2]
[419826392,1775400654829,-969.24,0.00015817,2]
[419826393,1775400654838,-969.24,0.00015817,2]
[419826394,1775400654848,-969.24,0.00015817,2]
[419826395,1775400654857,-969.24,0.00015817,2]
[419826396,1775400654866,-969.27278756,0.00015817,2]
[419826397,1775400654876,-1233.74,0.00015817,2]
[419826398,1775400654886,-1233.74,0.00015817,2]
[419826399,1775400654895,-1233.74,0.00015817,2]
[419826400,1775400654904,-1233.74,0.00015817,2]
[419826401,1775400654913,-1233.82978926,0.00015817,2]
[419826402,1775400654923,-508.46,0.00015817,2]
[419826403,1775400654932,-508.46,0.00015817,2]
[419826404,1775400654942,-508.46,0.00015817,2]
[419826405,1775400654951,-508.46,0.00015817,2]
[419826406,1775400654960,-508.67,0.00015817,2]
[419826407,1775400654970,-2741.7158634,0.00015818,2]
[419826408,1775400654979,-287250.8050724,0.00015818,2]
[419826409,1775400654988,-150.0,0.0001582,2]
[419826410,1775400654998,-150.0,0.00015822,2]
[419826411,1775400655008,-150.0,0.00015825,2]
[419826412,1775400655019,-1000.0,0.00015827,2]
[419826413,1775400655028,-150.0,0.00015832,2]
[419826414,1775400655039,-150.0,0.00015832,2]
[419826415,1775400655049,-150.0,0.00015834,2]
[419826416,1775400655059,-500.0,0.00015835,2]
[419826417,1775400655070,-150.0,0.00015837,2]
[419826418,1775400655080,-97697.2091726,0.0001584,2]
[419826419,1775400655090,-150.0,0.0001584,2]
[419826420,1775400655099,-150.0,0.00015847,2]
[419826421,1775400655109,-150.0,0.00015848,2]
[419826422,1775400655119,-150.0,0.0001585,2]
[419826423,1775400655129,-500.0,0.00015859,2]
[419826424,1775400655138,-151.0,0.00015859,2]
[419826425,1775400655147,-150.0,0.0001586,2]
[419826426,1775400655157,-150.0,0.0001586,2]
[419826427,1775400655167,-150.0,0.00015862,2]
[419826428,1775400655177,-150.0,0.00015864,2]
[419826429,1775400655187,-150.0,0.00015865,2]
[419826430,1775400655196,-150.0,0.00015868,2]
[419826431,1775400655206,-150.0,0.00015877,2]
[419826432,1775400655215,-1000.0,0.00015878,2]
[419826433,1775400655224,-1000.0,0.00015878,2]
[419826434,1775400655234,-1000.0,0.00015878,2]
[419826435,1775400655243,-1000.0,0.00015878,2]
[419826436,1775400655252,-1000.0,0.00015878,2]
[419826437,1775400655262,-150.0,0.0001588,2]
[419826438,1775400655271,-1000.0,0.00015882,2]
[419826439,1775400655281,-150.0,0.00015882,2]
[419826440,1775400655291,-5888.0,0.00015884,2]
[419826441,1775400655300,-150.0,0.00015888,2]
[419826442,1775400655310,-150.0,0.0001589,2]
[419826443,1775400655320,-500.0,0.0001589,2]
[419826444,1775400655329,-500.0,0.0001589,2]
[419826445,1775400655338,-500.0,0.0001589,2]
[419826446,1775400655348,-500.0,0.0001589,2]
[419826447,1775400655357,-500.0,0.0001589,2]
[419826448,1775400655367,-500.0,0.0001589,2]
[419826449,1775400655377,-500.0,0.0001589,2]
[419826450,1775400655386,-500.0,0.0001589,2]
[419826451,1775400655396,-500.0,0.0001589,2]
[419826452,1775400655405,-500.0,0.0001589,2]
[419826453,1775400655415,-500.0,0.0001589,2]
[419826454,1775400655425,-500.0,0.0001589,2]
[419826455,1775400655434,-500.0,0.0001589,2]
[419826456,1775400655443,-500.0,0.0001589,2]
[419826457,1775400655452,-500.0,0.0001589,2]
[419826458,1775400655461,-648.46954732,0.0001589,2]
[419826459,1775400655471,-150.0,0.0001589,2]
[419826460,1775400655480,-2500.0,0.0001589,2]
[419826461,1775400655489,-502.58762782,0.0001589,2]
[419826462,1775400655499,-2509.3602543,0.0001589,2]
[419826463,1775400655508,-2500.0,0.0001589,2]
[419826464,1775400655518,-2447.77606198,0.0001589,2]
[419826465,1775400655528,-2500.0,0.0001589,2]
[419826466,1775400655537,-950.63286364,0.0001589,2]
[419826467,1775400655547,-2500.0,0.0001589,2]
[419826468,1775400655557,-823.00574972,0.0001589,2]
[419826469,1775400655568,-2500.0,0.0001589,2]
[419826470,1775400655579,-2006.37622858,0.0001589,2]
[419826471,1775400655590,-1100.33490613,0.0001589,2]
[419826472,1775400655600,-2500.0,0.0001589,2]
[419826473,1775400655611,-150.0,0.00015892,2]
[419826474,1775400655622,-1000.0,0.00015895,2]
[419826475,1775400655633,-168.186131,0.00015898,7]
[419826476,1775400655645,-168.186131,0.00015898,7]
[419826477,1775400655655,-150.0,0.00015899,2]
[419826478,1775400655667,-1249.03,0.00015899,2]
[419826479,1775400655678,-1249.03,0.00015899,2]
[419826480,1775400655689,-1249.03,0.00015899,2]
[419826481,1775400655701,-1249.03,0.00015899,2]
[419826482,1775400655711,-1249.03,0.00015899,2]
[419826483,1775400655720,-1249.03,0.00015899,2]
[419826484,1775400655730,-1249.17214758,0.00015899,2]
[419826485,1775400655740,-1122.33,0.00015899,2]
[419826486,1775400655749,-1122.33,0.00015899,2]
[419826487,1775400655758,-1122.33,0.00015899,2]
[419826488,1775400655768,-1122.33,0.00015899,2]
[419826489,1775400655777,-1122.33,0.00015899,2]
[419826490,1775400655786,-1122.33,0.00015899,2]
[419826491,1775400655796,-1122.48918003,0.00015899,2]
[419826492,1775400655806,-769.66,0.00015899,2]
[419826493,1775400655816,-769.66,0.00015899,2]
[419826494,1775400655825,-769.66,0.00015899,2]
[419826495,1775400655835,-769.66,0.00015899,2]
[419826496,1775400655844,-769.66,0.00015899,2]
[419826497,1775400655853,-769.66,0.00015899,2]
[419826498,1775400655862,-769.8798975,0.00015899,2]
[419826499,1775400655871,-500.0,0.00015899,2]
[419826500,1775400655881,-500.0,0.00015899,2]
[419826501,1775400655891,-500.0,0.00015899,2]
[419826502,1775400655901,-500.0,0.00015899,2]
[419826503,1775400655910,-277.80362492,0.00015899,2]
[419826504,1775400655920,-1088.2,0.00015899,2]
[419826505,1775400655929,-1088.2,0.00015899,2]
[419826506,1775400655938,-1088.2,0.00015899,2]
[419826507,1775400655948,-1088.2,0.00015899,2]
[419826508,1775400655958,-1088.2,0.00015899,2]
[419826509,1775400655967,-1088.2,0.00015899,2]
[419826510,1775400655978,-1088.42513851,0.00015899,2]
[419826511,1775400655988,-673.65,0.00015899,2]
[419826512,1775400655998,-673.65,0.00015899,2]
[419826513,1775400656007,-673.65,0.00015899,2]
[419826514,1775400656017,-673.65,0.00015899,2]
[419826515,1775400656026,-673.65,0.00015899,2]
[419826516,1775400656035,-673.65,0.00015899,2]
[419826517,1775400656045,-673.70745143,0.00015899,2]
[419826518,1775400656054,-1772.17,0.00015899,2]
[419826519,1775400656063,-1772.17,0.00015899,2]
[419826520,1775400656073,-1772.17,0.00015899,2]
[419826521,1775400656082,-1772.17,0.00015899,2]
[419826522,1775400656091,-1772.17,0.00015899,2]
[419826523,1775400656101,-1772.17,0.00015899,2]
[419826524,1775400656110,-1772.3410465,0.00015899,2]
[419826525,1775400656119,-806.66,0.00015899,2]
[419826526,1775400656128,-806.66,0.00015899,2]
[419826527,1775400656138,-806.66,0.00015899,2]
[419826528,1775400656147,-806.66,0.00015899,2]
[419826529,1775400656156,-806.66,0.00015899,2]
[419826530,1775400656166,-806.66,0.00015899,2]
[419826531,1775400656175,-806.84950636,0.00015899,2]
[419826532,1775400656184,-1268.28,0.00015899,2]
[419826533,1775400656194,-1268.28,0.00015899,2]
[419826534,1775400656204,-1268.28,0.00015899,2]
[419826535,1775400656215,-1268.28,0.00015899,2]
[419826536,1775400656224,-1268.28,0.00015899,2]
[419826537,1775400656234,-1268.28,0.00015899,2]
[419826538,1775400656244,-1268.28484396,0.00015899,2]
[419826539,1775400656254,-50154.49209134,0.000159,2]
[419826540,1775400656264,-167.9673,0.000159,2]
[419826541,1775400656275,-167.9673,0.000159,2]
[419826542,1775400656286,-167.9673,0.000159,2]
[419826543,1775400656296,-167.9673,0.000159,2]
[419826544,1775400656305,-150.0,0.000159,2]
[419826545,1775400656315,-301.03881414,0.000159,5]
[419826546,1775400656324,-152.0,0.000159,5]
[419826547,1775400656333,-152.0,0.000159,5]
[419826548,1775400656343,-152.0,0.000159,5]
[419826549,1775400656352,-1525.0,0.000159,5]
[419826550,1775400656362,-152.0,0.000159,5]
[419826551,1775400656372,-1525.0,0.000159,5]
[419826552,1775400656381,-152.0,0.000159,5]
[419826553,1775400656391,-1525.0,0.000159,5]
[419826554,1775400656401,-152.0,0.000159,5]
[419826555,1775400656410,-1525.0,0.000159,5]
[419826556,1775400656419,-152.0,0.000159,5]
[419826557,1775400656429,-1525.0,0.000159,5]
[419826558,1775400656439,-152.0,0.000159,5]
[419826559,1775400656450,-1525.0,0.000159,5]
[419826560,1775400656460,-152.0,0.000159,5]
[419826561,1775400656469,-1525.0,0.000159,5]
[419826562,1775400656478,-152.0,0.000159,5]
[419826563,1775400656487,-1525.0,0.000159,5]
[419826564,1775400656496,-152.0,0.000159,5]
[419826565,1775400656507,-1525.0,0.000159,5]
[419826566,1775400656517,-152.0,0.000159,5]
[419826567,1775400656526,-1525.0,0.000159,5]
[419826568,1775400656535,-152.0,0.000159,5]
[419826569,1775400656545,-1525.0,0.000159,5]
[419826570,1775400656554,-152.0,0.000159,5]
[419826571,1775400656564,-1525.0,0.000159,5]
[419826572,1775400656574,-152.0,0.000159,5]
[419826573,1775400656585,-1525.0,0.000159,5]
[419826574,1775400656596,-152.0,0.000159,5]
[419826575,1775400656606,-1525.0,0.000159,5]
[419826576,1775400656616,-154.53586968,0.000159,5]
[419826577,1775400656626,-1525.0,0.000159,5]
[419826578,1775400656636,-1525.0,0.000159,5]
[419826579,1775400656645,-1575.70159455,0.000159,5]
[419826580,1775400656768,-157.47547331,0.000159,5]
[419826581,1775400656778,-25000.0,0.000159,3]
[419826582,1775400656787,-150.0,0.000159,2]
[419826583,1775400656797,-150.0,0.000159,2]
[419826584,1775400656810,-10665.04162103,0.000159,2]
[419826585,1775400656820,-1002.69250426,0.000159,2]
[419826586,1775400656830,-2000.0,0.00015901,2]
[419826587,1775400656840,-150.0,0.00015911,2]
[419826588,1775400656849,-150.0,0.00015912,2]
[419826589,1775400656860,-200.0,0.00015912,2]
[419826590,1775400656870,-1428.38747117,0.00015912,2]
[419826591,1775400656880,-209.40437684,0.00015912,2]
[419826592,1775400656890,-181.08010149,0.00015912,2]
[419826593,1775400656899,-771.01748645,0.00015912,2]
[419826594,1775400656908,-200.0,0.00015912,2]
[419826595,1775400656919,-209.40437684,0.00015912,2]
[419826596,1775400656929,-693.3919763,0.00015912,2]
[419826597,1775400656941,-290.26104003,0.00015912,2]
[419826598,1775400656950,-500.0,0.00015914,2]
[419826599,1775400656959,-151.0,0.00015914,2]
[419826600,1775400656969,-150.0,0.00015916,2]
[419826601,1775400656978,-150.0,0.00015916,2]
[419826602,1775400656988,-150.0,0.00015917,2]
[419826603,1775400656998,-150.0,0.00015919,2]
[419826604,1775400657008,-150.0,0.0001592,2]
[419826605,1775400657016,-1000.0,0.00015924,2]
[419826606,1775400657026,-1000.0,0.00015928,2]
[419826607,1775400657035,-150.0,0.00015933,2]
[419826608,1775400657045,-150.0,0.00015934,2]
[419826609,1775400657055,-150.0,0.00015938,2]
[419826610,1775400657064,-150.0,0.0001594,2]
[419826611,1775400657074,-150.0,0.00015944,2]
[419826612,1775400657083,-150.0,0.00015945,2]
[419826613,1775400657093,-150.0,0.00015946,2]
[419826614,1775400657102,-150.0,0.00015949,2]
[419826615,1775400657111,-150.0,0.0001595,2]
[419826616,1775400657120,-1453.70222906,0.00015955,7]
[419826617,1775400657130,-150.0,0.00015956,2]
[419826618,1775400657139,-5000.0,0.0001596,2]
[419826619,1775400657149,-150.0,0.0001596,2]
[419826620,1775400657159,-150.0,0.00015966,2]
[419826621,1775400657168,-500.0,0.00015969,2]
[419826622,1775400657178,-151.0,0.00015969,2]
[419826623,1775400657188,-150.0,0.00015972,2]
[419826624,1775400657198,-150.0,0.00015972,2]
[419826625,1775400657207,-150.0,0.00015973,2]
[419826626,1775400657218,-150.0,0.00015978,2]
[419826627,1775400657229,-150.0,0.0001598,2]
[419826628,1775400657239,-150.0,0.00015983,2]
[419826629,1775400657249,-1918.65220609,0.0001599,2]
[419826630,1775400657258,-237.60109,0.00015997,2]
[419826631,1775400657267,-666.0,0.00015999,2]
[419826632,1775400657276,-666.0,0.00015999,2]
[419826633,1775400657287,-666.0,0.00015999,2]
[419826634,1775400657296,-287.64959053,0.00015999,2]
[419826635,1775400657306,-245.0843554,0.00016,2]
[419826636,1775400657315,-153.46464446,0.00016,2]
[419826637,1775400657324,-214.21185671,0.00016,2]
[419826638,1775400657334,-150.14541726,0.00016,2]
[419826639,1775400657347,-152.6137269,0.00016,2]
[419826640,1775400657356,-233.2638427,0.00016,2]
[419826641,1775400657366,-150.17540857,0.00016,2]
[419826642,1775400657375,-151.22967101,0.00016,2]
[419826643,1775400657385,-151.01430456,0.00016,2]
[419826644,1775400657396,-150.60277619,0.00016,2]
[419826645,1775400657406,-287.38140471,0.00016,2]
[419826646,1775400657415,-234.65590515,0.00016,2]
[419826647,1775400657425,-151.75828689,0.00016,2]
[419826648,1775400657435,-267.10584669,0.00016,2]
[419826649,1775400657445,-1618400.85527423,0.00016,2]
[419826650,1775400658420,-2923.80028505,0.00016,2]
[419826651,1775400658684,9500.01,8.175e-05,2]
[419826652,1775400658709,10000.01,8.175e-05,2]
[419826653,1775400658734,10000.01,8.175e-05,2]